fUSD/lending_fUSD_20241122
["ID","MTS","AMOUNT","RATE_DAILY","PERIOD"]
[343035841,1732300248337,-500.0,0.00082988,120]
[343035842,1732300248346,-151.0,0.00082988,120]
[343035843,1732300248356,-753.533697,0.00082988,120]
[343035844,1732300248366,-753.533697,0.00082988,120]
[343035845,1732300248375,-1138.42,0.00082988,120]
[343035846,1732300248385,-153.951503,0.00082988,120]
[343035847,1732300248394,-628.98,0.00082988,120]
[343035848,1732300248404,-10000.0,0.00083,30]
[343035849,1732300248415,-161.33,0.00083055,2]
[343035850,1732300248425,-2702.93,0.0008328,120]
[343035851,1732300248435,-500.0,0.00083299,120]
[343035852,1732300248444,-500.0,0.00083299,120]
[343035853,1732300248453,-500.0,0.00083299,120]
[343035854,1732300248463,-500.0,0.00083299,120]
[343035855,1732300248473,-500.0,0.00083299,120]
[343035856,1732300248482,-226.41994359,0.00083299,120]
[343035857,1732300248492,-500.0,0.00083299,120]
[343035858,1732300248502,-500.0,0.00083299,120]
[343035859,1732300248512,-247.64680311,0.00083299,120]
[343035860,1732300248523,-645.18344804,0.00083373,60]
[343035861,1732300248533,-500.0,0.0008338,120]
[343035862,1732300248543,-500.0,0.0008338,120]
[343035863,1732300248553,-500.0,0.0008338,120]
[343035864,1732300248562,-500.0,0.0008338,120]
[343035865,1732300248572,-500.0,0.0008338,120]
[343035866,1732300248583,-500.0,0.0008338,120]
[343035867,1732300248592,-2702.93,0.00083398,120]
[343035868,1732300248602,-500.0,0.00083399,120]
[343035869,1732300248611,-500.0,0.00083399,120]
[343035870,1732300248620,-500.0,0.00083399,120]
[343035871,1732300248630,-502.56057318,0.00083399,120]
[343035872,1732300248639,-500.0,0.00083399,120]
[343035873,1732300248648,-500.0,0.00083399,120]
[343035874,1732300248658,-500.0,0.00083399,120]
[343035875,1732300248668,-503.32986559,0.00083399,120]
[343035876,1732300248681,-267.78281616,0.00083399,120]
[343035877,1732300248690,-504.43369351,0.00083399,120]
[343035878,1732300248700,-503.97355473,0.00083399,120]
[343035879,1732300248710,-500.0,0.00083399,120]
[343035880,1732300248719,-500.0,0.00083399,120]
[343035881,1732300248729,-500.0,0.00083399,120]
[343035882,1732300248739,-313.05455002,0.00083399,120]
[343035883,1732300248749,-500.0,0.00083399,120]
[343035884,1732300248761,-500.0,0.00083399,120]
[343035885,1732300248771,-500.0,0.00083399,120]
[343035886,1732300248781,-255.88482336,0.00083399,120]
[343035887,1732300248790,-185.6360663,0.00083399,120]
[343035888,1732300248800,-500.0,0.00083399,120]
[343035889,1732300248809,-400.40169583,0.00083399,120]
[343035890,1732300248819,-500.0,0.00083399,120]
[343035891,1732300248829,-612.07162402,0.00083399,120]
[343035892,1732300248839,-502.61158412,0.00083399,120]
[343035893,1732300248848,-415.83465377,0.00083399,120]
[343035894,1732300248857,-200.0,0.00083399,7]
[343035895,1732300248868,-500.0,0.00083399,120]
[343035896,1732300248877,-500.0,0.00083399,120]
[343035897,1732300248887,-500.0,0.00083399,120]
[343035898,1732300248898,-500.0,0.00083399,120]
[343035899,1732300248912,-500.0,0.00083399,120]
[343035900,1732300248922,-500.0,0.00083399,120]
[343035901,1732300248932,-500.0,0.00083399,120]
[343035902,1732300248943,-500.0,0.00083399,120]
[343035903,1732300248953,-500.0,0.00083399,120]
[343035904,1732300248962,-512.65520625,0.00083399,120]
[343035905,1732300248974,-500.0,0.00083399,120]
[343035906,1732300248984,-500.0,0.00083399,120]
[343035907,1732300248994,-500.0,0.00083399,120]
[343035908,1732300249004,-500.0,0.00083399,120]
[343035909,1732300249016,-500.0,0.00083399,120]
[343035910,1732300249026,-500.0,0.00083399,120]
[343035911,1732300249036,-500.0,0.00083399,120]
[343035912,1732300249045,-500.0,0.00083399,120]
[343035913,1732300249055,-646.6626409,0.00083399,120]
[343035914,1732300249065,-500.0,0.00083399,120]
[343035915,1732300249075,-500.0,0.00083399,120]
[343035916,1732300249086,-541.43158334,0.00083399,120]
[343035917,1732300249096,-500.0,0.00083399,120]
[343035918,1732300249105,-502.65488542,0.00083399,120]
[343035919,1732300249115,-622.50513531,0.00083399,120]
[343035920,1732300249125,-566.84154041,0.00083399,120]
[343035921,1732300249135,-152.16673859,0.00083399,120]
[343035922,1732300249144,-648.85064151,0.00083399,120]
[343035923,1732300249153,-2000.0,0.00083399,30]
[343035924,1732300249163,-441.65726383,0.00083399,120]
[343035925,1732300249173,-500.0,0.00083399,120]
[343035926,1732300249184,-500.0,0.00083399,120]
[343035927,1732300249194,-500.0,0.00083399,120]
[343035928,1732300249204,-500.0,0.00083399,120]
[343035929,1732300249215,-500.0,0.00083399,120]
[343035930,1732300249225,-500.0,0.00083399,120]
[343035931,1732300249235,-500.0,0.00083399,120]
[343035932,1732300249245,-500.0,0.00083399,120]
[343035933,1732300249256,-500.0,0.00083399,120]
[343035934,1732300249267,-500.0,0.00083399,120]
[343035935,1732300249277,-500.0,0.00083399,120]
[343035936,1732300249287,-500.0,0.00083399,120]
[343035937,1732300249297,-533.62593311,0.00083399,120]
[343035938,1732300249306,-505.51000065,0.00083399,120]
[343035939,1732300249316,-475.0,0.00083399,120]
[343035940,1732300249326,-503.95642964,0.00083399,120]
[343035941,1732300249336,-508.33262228,0.00083399,120]
[343035942,1732300249346,-503.47198227,0.00083399,120]
[343035943,1732300249356,-465.84500223,0.00083399,120]
[343035944,1732300249365,-500.0,0.00083399,120]
[343035945,1732300249375,-572.53733739,0.00083399,120]
[343035946,1732300249385,-536.28174089,0.00083399,120]
[343035947,1732300249395,-500.0,0.00083399,120]
[343035948,1732300249405,-500.0,0.00083399,120]
[343035949,1732300249414,-500.0,0.00083399,2]
[343035950,1732300249424,-500.0,0.00083399,120]
[343035951,1732300249433,-600.65835597,0.00083399,120]
[343035952,1732300249443,-499.27887702,0.00083399,120]
[343035953,1732300249453,-2062.11,0.00083399,120]
[343035954,1732300249463,-500.0,0.00083399,120]
[343035955,1732300249473,-558.68139228,0.00083399,120]
[343035956,1732300249483,-502.04183776,0.00083399,120]
[343035957,1732300249493,-551.63066718,0.00083399,120]
[343035958,1732300249502,-500.0,0.00083399,120]
[343035959,1732300249516,-576.21929982,0.00083399,120]
[343035960,1732300249529,-500.0,0.00083399,120]
[343035961,1732300249538,-500.0,0.00083399,120]
[343035962,1732300249547,-522.64177127,0.00083399,120]
[343035963,1732300249557,-504.2074853,0.00083399,120]
[343035964,1732300249567,-500.0,0.00083399,120]
[343035965,1732300249577,-500.0,0.00083399,120]
[343035966,1732300249587,-500.0,0.00083399,120]
[343035967,1732300249597,-500.0,0.00083399,120]
[343035968,1732300249607,-582.00295788,0.00083399,120]
[343035969,1732300249617,-500.0,0.00083399,120]
[343035970,1732300249627,-1856.73,0.00083399,120]
[343035971,1732300249637,-678.51,0.00083399,120]
[343035972,1732300249647,-500.0,0.00083399,120]
[343035973,1732300249736,-1372.09,0.00083399,120]
[343035974,1732300249746,-1196.07,0.00083399,120]
[343035975,1732300249757,-500.0,0.00083399,120]
[343035976,1732300249767,-168.0,0.00083399,120]
[343035977,1732300249776,-500.0,0.00083399,120]
[343035978,1732300249785,-500.0,0.00083399,120]
[343035979,1732300249794,-500.0,0.00083399,120]
[343035980,1732300249803,-277.13891519,0.00083399,120]
[343035981,1732300249811,-500.0,0.00083399,120]
[343035982,1732300249821,-500.0,0.00083399,120]
[343035983,1732300249830,-500.0,0.00083399,120]
[343035984,1732300249839,-500.0,0.00083399,120]
[343035985,1732300249849,-500.0,0.00083399,120]
[343035986,1732300249858,-500.0,0.00083399,120]
[343035987,1732300249868,-500.0,0.00083399,120]
[343035988,1732300249878,-500.0,0.00083399,120]
[343035989,1732300249888,-2145.04,0.00083399,120]
[343035990,1732300249902,-526.33,0.00083399,120]
[343035991,1732300249911,-916.84,0.00083399,120]
[343035992,1732300249921,-2258.62,0.00083399,120]
[343035993,1732300249931,-301.46355211,0.00083399,2]
[343035994,1732300249943,-467.89962483,0.00083399,120]
[343035995,1732300249952,-500.0,0.00083399,120]
[343035996,1732300249962,-2982.15,0.00083399,120]
[343035997,1732300249972,-500.0,0.00083399,120]
[343035998,1732300249981,-500.0,0.00083399,120]
[343035999,1732300249991,-500.0,0.00083399,120]
[343036000,1732300250000,-1420.01,0.00083399,120]
[343036001,1732300250013,-377.22759809,0.00083399,120]
[343036002,1732300250022,-500.0,0.00083399,120]
[343036003,1732300250032,-1716.42,0.00083399,120]
[343036004,1732300250041,-2749.16,0.00083399,120]
[343036005,1732300250051,-500.0,0.00083399,120]
[343036006,1732300250061,-1636.59,0.00083399,120]
[343036007,1732300250070,-500.0,0.00083399,120]
[343036008,1732300250079,-500.0,0.00083399,120]
[343036009,1732300250088,-500.0,0.00083399,120]
[343036010,1732300250099,-1138.42,0.00083399,120]
[343036011,1732300250109,-500.0,0.00083399,7]
[343036012,1732300250119,-500.0,0.00083399,120]
[343036013,1732300250128,-1609.7,0.00083399,120]
[343036014,1732300250138,-549.53872024,0.00083399,120]
[343036015,1732300250148,-505.98863368,0.00083399,120]
[343036016,1732300250163,-1335.46,0.00083399,120]
[343036017,1732300250173,-174.81608709,0.00083399,120]
[343036018,1732300250183,-628.98,0.00083399,120]
[343036019,1732300250201,-3631.48,0.00083399,120]
[343036020,1732300250215,-6598.49,0.00083399,120]
[343036021,1732300250224,-50000.0,0.000834,120]
[343036022,1732300250233,-512.48591876,0.00083497,120]
[343036023,1732300250242,-500.0,0.00083497,120]
[343036024,1732300250251,-500.0,0.00083497,120]
[343036025,1732300250261,-500.0,0.00083497,120]
[343036026,1732300250270,-500.0,0.00083497,120]
[343036027,1732300250279,-500.0,0.00083497,120]
[343036028,1732300250287,-152.59,0.0008363,2]
[343036029,1732300250296,-4600.0,0.000839,30]
[343036030,1732300250305,-20000.0,0.00084,120]
[343036031,1732300250314,-206.814,0.0008411,120]
[343036032,1732300250324,-7000.0,0.00084288,120]
[343036033,1732300250332,-20000.0,0.00084288,120]
[343036034,1732300250341,-3475.96,0.00084299,120]
[343036035,1732300250350,-1247.45,0.00084299,120]
[343036036,1732300250359,-2813.4572,0.000843,120]
[343036037,1732300250367,-6791.2735,0.000843,120]
[343036038,1732300250376,-2702.93,0.0008437,120]
[343036039,1732300250385,-151.0,0.0008437,120]
[343036040,1732300250394,-151.0,0.0008437,120]
[343036041,1732300250402,-152.316911,0.0008437,120]
[343036042,1732300250411,-500.0,0.00084372,120]
[343036043,1732300250421,-555.55761308,0.00084372,120]
[343036044,1732300250430,-153.33541,0.00084372,120]
[343036045,1732300250440,-500.0,0.00084372,120]
[343036046,1732300250449,-151.0,0.00084372,120]
[343036047,1732300250459,-151.0,0.00084372,120]
[343036048,1732300250468,-151.0,0.00084372,120]
[343036049,1732300250478,-500.0,0.00084387,120]
[343036050,1732300250488,-500.0,0.00084387,120]
[343036051,1732300250497,-2258.62,0.00084387,120]
[343036052,1732300250508,-500.0,0.00084387,120]
[343036053,1732300250517,-2982.15,0.00084387,120]
[343036054,1732300250526,-500.0,0.00084387,120]
[343036055,1732300250535,-1138.42,0.00084387,120]
[343036056,1732300250544,-628.98,0.00084387,120]
[343036057,1732300250554,-2062.11,0.00084388,120]
[343036058,1732300250563,-500.0,0.00084388,120]
[343036059,1732300250573,-1856.73,0.00084388,120]
[343036060,1732300250582,-1196.07,0.00084388,120]
[343036061,1732300250591,-238.0,0.00084388,120]
[343036062,1732300250600,-500.0,0.00084388,120]
[343036063,1732300250609,-620.53205211,0.00084388,120]
[343036064,1732300250619,-151.0,0.00084388,7]
[343036065,1732300250628,-151.0,0.00084388,120]
[343036066,1732300250637,-151.0,0.00084388,120]
[343036067,1732300250647,-153.613983,0.00084388,120]
[343036068,1732300250655,-151.0,0.00084388,120]
[343036069,1732300250665,-151.0,0.00084388,120]
[343036070,1732300250674,-500.0,0.00084388,120]
[343036071,1732300250683,-500.0,0.00084388,120]
[343036072,1732300250692,-151.0,0.00084388,120]
[343036073,1732300250700,-500.0,0.00084388,120]
[343036074,1732300250709,-554.000425,0.00084388,120]
[343036075,1732300250719,-500.0,0.00084388,120]
[343036076,1732300250728,-554.000425,0.00084388,120]
[343036077,1732300250737,-2145.04,0.00084388,120]
[343036078,1732300250746,-151.0,0.00084388,120]
[343036079,1732300250755,-151.0,0.00084388,120]
[343036080,1732300250766,-916.84,0.00084388,120]
[343036081,1732300250775,-259.959059,0.00084388,120]
[343036082,1732300250784,-259.959059,0.00084388,120]
[343036083,1732300250793,-500.0,0.00084388,120]
[343036084,1732300250802,-500.0,0.00084388,120]
[343036085,1732300250812,-1420.01,0.00084388,120]
[343036086,1732300250821,-500.0,0.00084388,120]
[343036087,1732300250830,-2749.16,0.00084388,120]
[343036088,1732300250840,-500.0,0.00084388,120]
[343036089,1732300250849,-1636.59,0.00084388,120]
[343036090,1732300250858,-500.0,0.00084388,120]
[343036091,1732300250868,-500.0,0.00084388,7]
[343036092,1732300250877,-1609.7,0.00084388,120]
[343036093,1732300250887,-1335.46,0.00084388,120]
[343036094,1732300250896,-3631.48,0.00084388,120]
[343036095,1732300250909,-6598.49,0.00084388,120]
[343036096,1732300250919,-2702.93,0.00084389,120]
[343036097,1732300250929,-985.89285,0.0008439,120]
[343036098,1732300250939,-3814.79853051,0.00084396,11]
[343036099,1732300251036,-4206.15257198,0.00084396,11]
[343036100,1732300251061,-470.99640723,0.000799,15]
[343036101,1732300251074,-356.04213416,0.000799,15]
[343036102,1732300251084,-114.55192716,0.00084396,11]
[343036103,1732300251096,-3338.500002,0.00084396,11]
[343036104,1732300251108,-2199.33090348,0.00084396,11]
[343036105,1732300251123,-272.44335673,0.00084396,11]
[343036106,1732300251134,-8730.90792,0.00084396,11]
[343036107,1732300251145,-577.46205938,0.00084396,11]
[343036108,1732300251159,-257.48109287,0.00084396,11]
[343036109,1732300251172,-412.90868113,0.00084396,11]
[343036110,1732300251183,-381.63983307,0.00084396,11]
[343036111,1732300251262,-269.86286693,0.00084396,11]
[343036112,1732300251274,-500.0,0.00084396,11]
[343036113,1732300251286,-4007.79999928,0.00084396,11]
[343036114,1732300251297,-5991.53489997,0.00084396,11]
[343036115,1732300251309,-4445.16399731,0.00084396,11]
[343036116,1732300251318,-5521.74385082,0.00084396,11]
[343036117,1732300251344,-2351.06042596,0.00084396,11]
[343036118,1732300251355,-646.12000003,0.00084396,11]
[343036119,1732300251605,-377.077714,0.00082122,15]
[343036120,1732300251617,-449.9608273,0.00082122,15]
[343036121,1732300251626,-1034.2891727,0.000822,60]
[343036122,1732300251637,-310.9708273,0.000822,60]
[343036123,1732300251647,-151.0,0.000824,120]
[343036124,1732300251656,-162.93725,0.000824,120]
[343036125,1732300251666,-187.6092927,0.00084396,11]
[343036126,1732300251677,-718.19999599,0.00084396,11]
[343036127,1732300251688,-3719.8621334,0.00084396,11]
[343036128,1732300251698,-1143.4713107,0.00084396,11]
[343036129,1732300251709,-183.9951126,0.00084396,11]
[343036130,1732300251719,-2062.11,0.00084398,120]
[343036131,1732300251728,-500.0,0.00084398,120]
[343036132,1732300251738,-1856.73,0.00084398,120]
[343036133,1732300251748,-1196.07,0.00084398,120]
[343036134,1732300251759,-500.0,0.00084398,120]
[343036135,1732300251769,-500.0,0.00084398,120]
[343036136,1732300251779,-500.0,0.00084398,120]
[343036137,1732300251789,-500.0,0.00084398,120]
[343036138,1732300251798,-500.0,0.00084398,120]
[343036139,1732300251808,-500.0,0.00084398,120]
[343036140,1732300251817,-2145.04,0.00084398,120]
[343036141,1732300251827,-916.84,0.00084398,120]
[343036142,1732300251837,-2258.62,0.00084398,120]
[343036143,1732300251846,-500.0,0.00084398,120]
[343036144,1732300251856,-2982.15,0.00084398,120]
[343036145,1732300251866,-500.0,0.00084398,120]
[343036146,1732300251875,-500.0,0.00084398,120]
[343036147,1732300251885,-66.3818433,0.00084398,120]
[343036148,1732300251971,510.14,0.000598,120]
[343036149,1732300318677,161.24,0.00041096,2]
[343036151,1732300546841,706.0,0.00041,4]
[343036152,1732300719128,150.0,0.0006001,2]
[343036153,1732300848197,690.85673437,0.000598,120]
[343036154,1732300858896,-643.27558203,0.00070995,120]
[343036155,1732300858919,-152.411,0.0007201,120]
[343036156,1732300858943,-152.395,0.000758,120]
[343036157,1732300858965,-11102.06,0.00078579,7]
[343036158,1732300858986,-2805.32,0.00078579,7]
[343036159,1732300859007,-7390.79,0.00078579,7]
[343036160,1732300859029,-8491.14,0.00078579,7]
[343036161,1732300859052,-350.7286,0.0007878,2]
[343036162,1732300859076,-418.5031,0.0007878,2]
[343036163,1732300859098,-2500.0,0.0007878,2]
[343036164,1732300859122,-176.92593418,0.00078879,120]
[343036165,1732300859146,-972.506,0.00078879,120]
[343036166,1732300859170,-150.0,0.00078879,20]
[343036167,1732300859192,-165993.37671797,0.0007888,2]
[343036175,1732301186777,5740.4607192,0.0006,5]
[343036216,1732301432096,-254.0,0.000622,3]
[343036218,1732301432106,-152.355,0.0007201,120]
[343036219,1732301432122,-133.645,0.00074573,2]
[343036220,1732301432134,-16.355,0.00074573,2]
[343036221,1732301432144,-152.0,0.00075204,3]
[343036222,1732301432154,-152.401,0.0007625,120]
[343036223,1732301432164,-33903.80801672,0.000777,120]
[343036224,1732301432176,-1622.46305277,0.000777,120]
[343036225,1732301432188,-6324.59999996,0.000777,120]
[343036226,1732301432213,-555.05850133,0.000777,120]
[343036227,1732301432225,-294.303997,0.000777,120]
[343036228,1732301432283,-6645.13020921,0.000777,120]
[343036229,1732301432307,-14700.76818074,0.000777,120]
[343036230,1732301432333,-1321.14999999,0.000777,120]
[343036231,1732301432345,-376.83,0.000777,120]
[343036232,1732301432533,-874.67986358,0.000777,120]
[343036233,1732301432542,-154.04,0.00077726,2]
[343036234,1732301432552,-1108.7422,0.0007868,2]
[343036235,1732301432562,-250.0,0.00078707,120]
[343036236,1732301432571,-31460.8445,0.0007878,2]
[343036237,1732301432581,-500.0,0.00078838,2]
[343036238,1732301432590,-717.72,0.00078875,30]
[343036239,1732301432601,-34006.62328203,0.0007888,2]
[343036240,1732301432611,-250.0,0.00079285,120]
[343036241,1732301432631,-678.53613891,0.00079337,15]
[343036242,1732301432641,-250.0,0.00079371,120]
[343036243,1732301432650,-20483.93,0.00079428,2]
[343036244,1732301432660,-2004.0,0.00079437,2]
[343036245,1732301432670,-274.03,0.00079559,120]
[343036246,1732301432680,-300.0,0.00079564,2]
[343036247,1732301432689,-500.0,0.00079564,30]
[343036248,1732301432699,-200.0,0.00079574,30]
[343036249,1732301432712,-204.91,0.00079665,120]
[343036250,1732301432722,-1000.0,0.00079686,120]
[343036251,1732301432731,-660.5875,0.00079899,2]
[343036252,1732301432741,-2500.0,0.00079899,2]
[343036253,1732301432750,-1615.3421,0.000799,2]
[343036254,1732301432759,-1000.0,0.000799,30]
[343036255,1732301432770,-224.56,0.00079999,120]
[343036256,1732301432779,-621.97,0.00079999,120]
[343036257,1732301432788,-1257.75,0.00079999,120]
[343036258,1732301432798,-508.43806575,0.00079999,120]
[343036259,1732301432808,-500.0,0.00079999,120]
[343036260,1732301432818,-500.0,0.00079999,120]
[343036261,1732301432828,-500.0,0.00079999,120]
[343036262,1732301432838,-1801.95,0.00079999,120]
[343036263,1732301432848,-1573.38,0.00079999,120]
[343036264,1732301432859,-500.0,0.00079999,120]
[343036265,1732301432875,-500.0,0.00079999,120]
[343036266,1732301432884,-509.13317529,0.00079999,120]
[343036267,1732301432894,-500.0,0.00079999,120]
[343036268,1732301432904,-500.0,0.00079999,120]
[343036269,1732301432914,-500.0,0.00079999,20]
[343036270,1732301432924,-500.0,0.00079999,120]
[343036271,1732301432934,-527.89747945,0.00079999,120]
[343036272,1732301432944,-502.69524021,0.00079999,120]
[343036273,1732301432954,-500.0,0.00079999,120]
[343036274,1732301432964,-503.13701489,0.00079999,120]
[343036275,1732301432975,-501.4091194,0.00079999,120]
[343036276,1732301432984,-500.0,0.00079999,120]
[343036277,1732301432994,-500.0,0.00079999,120]
[343036278,1732301433004,-500.0,0.00079999,120]
[343036279,1732301433014,-501.71855878,0.00079999,120]
[343036280,1732301433024,-529.55273255,0.00079999,120]
[343036281,1732301433033,-198.42788833,0.00079999,120]
[343036282,1732301433046,-301.57211167,0.00079999,120]
[343036283,1732301433057,-506.23656624,0.00079999,120]
[343036284,1732301433066,-423.61269613,0.00079999,120]
[343036285,1732301433076,-500.0,0.00079999,120]
[343036286,1732301433086,-500.0,0.00079999,120]
[343036287,1732301433096,-502.68877097,0.00079999,120]
[343036288,1732301433106,-500.6290501,0.00079999,120]
[343036289,1732301433118,-468.1229985,0.00079999,120]
[343036290,1732301433128,-634.50810739,0.00079999,120]
[343036291,1732301433138,-501.93991141,0.00079999,120]
[343036292,1732301433148,-504.29450678,0.00079999,120]
[343036293,1732301433158,-500.0,0.00079999,120]
[343036294,1732301433167,-502.91064098,0.00079999,120]
[343036295,1732301433177,-500.0,0.00079999,120]
[343036296,1732301433187,-536.16445418,0.00079999,120]
[343036297,1732301433196,-503.32667491,0.00079999,120]
[343036298,1732301433211,-500.0,0.00079999,120]
[343036299,1732301433220,-505.03098376,0.00079999,120]
[343036300,1732301433230,-500.0,0.00079999,120]
[343036301,1732301433241,-500.0,0.00079999,120]
[343036302,1732301433250,-500.0,0.00079999,120]
[343036303,1732301433260,-500.0,0.00079999,120]
[343036304,1732301433270,-500.0,0.00079999,120]
[343036305,1732301433284,-500.0,0.00079999,120]
[343036306,1732301433294,-500.0,0.00079999,120]
[343036307,1732301433303,-505.34034831,0.00079999,120]
[343036308,1732301433314,-443.27885522,0.00079999,120]
[343036309,1732301433326,-500.0,0.00079999,120]
[343036310,1732301433335,-500.0,0.00079999,120]
[343036311,1732301433345,-500.0,0.00079999,120]
[343036312,1732301433356,-500.0,0.00079999,120]
[343036313,1732301433368,-500.0,0.00079999,120]
[343036314,1732301433378,-500.0,0.00079999,120]
[343036315,1732301433388,-500.0,0.00079999,120]
[343036316,1732301433398,-500.0,0.00079999,120]
[343036317,1732301433409,-500.0,0.00079999,120]
[343036318,1732301433419,-500.0,0.00079999,120]
[343036319,1732301433429,-500.0,0.00079999,120]
[343036320,1732301433439,-501.96615344,0.00079999,120]
[343036321,1732301433449,-500.0,0.00079999,120]
[343036322,1732301433459,-501.96616879,0.00079999,120]
[343036323,1732301433468,-198.05218618,0.00079999,120]
[343036326,1732301438091,-301.94781382,0.00079999,120]
[343036327,1732301438100,-327.79218618,0.00079999,120]
[343036328,1732301438112,-172.20781382,0.00079999,120]
[343036329,1732301438127,-500.0,0.00079999,120]
[343036330,1732301438137,-500.0,0.00079999,120]
[343036331,1732301438147,-212.22088718,0.00080199,51]
[343036332,1732301438157,-437.70500238,0.00080199,2]
[343036333,1732301438167,-1467.55217698,0.00080288,10]
[343036334,1732301438179,-469.693,0.00080288,10]
[343036335,1732301438191,-65935.56870812,0.00080288,10]
[343036336,1732301438202,-500.0,0.00080297,120]
[343036337,1732301438213,-500.0,0.00080297,120]
[343036338,1732301438223,-500.0,0.00080297,120]
[343036339,1732301438233,-500.0,0.00080297,120]
[343036340,1732301438243,-2027.64,0.00080297,120]
[343036341,1732301438253,-727.68,0.00080297,120]
[343036342,1732301438262,-500.0,0.00080297,120]
[343036343,1732301438274,-500.0,0.00080297,120]
[343036344,1732301438284,-500.0,0.00080297,120]
[343036345,1732301438294,-500.0,0.00080297,120]
[343036346,1732301438304,-500.0,0.00080297,120]
[343036347,1732301438317,-500.0,0.00080297,120]
[343036348,1732301438327,-576.04550381,0.00080297,120]
[343036349,1732301438337,-500.0,0.00080297,120]
[343036350,1732301438347,-4120.73,0.00080297,120]
[343036351,1732301438358,-245000.0,0.00080298,30]
[343036352,1732301438374,-22624.271295,0.00080304,10]
[343036353,1732301438386,-17899.2800263,0.00080388,9]
[343036354,1732301438397,-45248.5425901,0.0008039,10]
[343036355,1732301438407,-35798.5600526,0.0008039,9]
[343036356,1732301438418,-1374.74,0.00080398,120]
[343036357,1732301438429,-243.04,0.00080398,120]
[343036358,1732301438439,-1237.82,0.00080398,120]
[343036359,1732301438449,-797.38,0.00080398,120]
[343036360,1732301438459,-500.0,0.00080398,120]
[343036361,1732301438469,-500.0,0.00080398,120]
[343036362,1732301438479,-500.0,0.00080398,120]
[343036363,1732301438489,-500.0,0.00080398,120]
[343036364,1732301438499,-500.0,0.00080398,120]
[343036365,1732301438509,-611.23,0.00080398,120]
[343036366,1732301438518,-1003.07,0.00080398,120]
[343036367,1732301438528,-1430.03,0.00080398,120]
[343036368,1732301438538,-500.0,0.00080398,120]
[343036369,1732301438548,-500.0,0.00080398,120]
[343036370,1732301438559,-500.0,0.00080398,120]
[343036371,1732301438568,-312.95498304,0.00080398,120]
[343036372,1732301438578,-1947.32,0.00080398,120]
[343036373,1732301438589,-500.0,0.00080398,7]
[343036374,1732301438598,-1159.25,0.00080398,120]
[343036375,1732301438608,-945.95,0.00080398,120]
[343036376,1732301438622,-2027.64,0.00080398,120]
[343036377,1732301438631,-727.68,0.00080398,120]
[343036378,1732301438640,-261.16,0.00080398,120]
[343036379,1732301438649,-1140.21,0.00080398,120]
[343036380,1732301438659,-2572.3,0.00080398,120]
[343036381,1732301438668,-4673.93,0.00080398,120]
[343036382,1732301438678,-500.0,0.00080398,120]
[343036383,1732301438689,-500.0,0.00080398,120]
[343036384,1732301438699,-4120.73,0.00080398,120]
[343036385,1732301438709,-500.0,0.00080398,120]
[343036386,1732301438719,-500.0,0.00080398,120]
[343036387,1732301438729,-501.87801716,0.00080399,120]
[343036388,1732301438738,-500.0,0.00080399,120]
[343036390,1732301438748,-597.14848454,0.00080399,120]
[343036391,1732301438757,-500.0,0.00080399,120]
[343036392,1732301438766,-500.0,0.00080399,120]